[Event "EYCC Open U18 2018"]
[Site "Riga"]
[Date "2018.08.20"]
[Round "1"]
[White "Nguyen, Thai Dai Van"]
[Black "Yurovskykh, Oleksandr"]
[Result "1/2-1/2"]
[ECO "B27"]
[WhiteElo "2548"]
[BlackElo "2263"]
[Annotator "ChessBase"]
[PlyCount "113"]
[EventDate "2018.08.20"]
[EventType "swiss"]
[EventCountry "LAT"]
[SourceTitle "playchess.com"]
[Source "ChessBase"]
[SourceQuality "1"]
[TimeControl "40/5400+30:1800+30"]

1. e4 {[%emt 0:00:00]} c5 {[%emt 0:00:00]} 2. Nf3 {[%emt 0:00:00]} g6 {[%emt 0:00:01]} 3. c3 {[%emt 0:02:39]} d5 {[%emt 0:00:25]} 4. exd5 {[%emt 0:00:05]} Qxd5 {[%emt 0:00:06]} 5. d4 {[%emt 0:00:21]} Nc6 {[%emt 0:00:51]} 6. Be2 {[%emt 0:15:28]} Bg7 {[%emt 0:00:16]} 7. Be3 {[%emt 0:05:15]} cxd4 {[%emt 0:06:32]} 8. cxd4 {[%emt 0:00:18]} Nf6 {[%emt 0:00:30]} 9. Nc3 {[%emt 0:00:44]} Qa5 {[%emt 0:00:57]} 10. O-O {[%emt 0:02:57]} O-O {[%emt 0:01:31]} 11. a3 {[%emt 0:06:36]} Nd5 {[%emt 0:02:24]} 12. Nxd5 {[%emt 0:02:05]} Qxd5 {[%emt 0:00:07]} 13. Rc1 {[%emt 0:01:13]} Rd8 {[%emt 0:07:09]} 14. Bc4 {[%emt 0:13:44]} Qd6 {[%emt 0:04:13]} 15. Qb3 {[%emt 0:05:45]} e6 {[%emt 0:03:19]} 16. Bg5 {[%emt 0:03:01]} Rf8 {[%emt 0:29:59]} 17. Bd2 {[%emt 0:07:13]} Nxd4 {[%emt 0:05:21]} 18. Nxd4 {[%emt 0:00:09]} Qxd4 {[%emt 0:00:21]} 19. Bc3 {[%emt 0:01:35]} Qf4 {[%emt 0:04:27]} 20. Rfd1 {[%emt 0:05:30]} Bxc3 {[%emt 0:03:44]} 21. Qxc3 {[%emt 0:07:06]} b6 {[%emt 0:01:54]} 22. g3 {[%emt 0:02:54]} Qe4 {[%emt 0:02:02]} 23. Rd4 {[%emt 0:01:12]} Qc6 {[%emt 0:00:43]} 24. Qd2 {[%emt 0:01:06]} Bb7 {[%emt 0:04:39]} 25. Bd5 {[%emt 0:00:09]} Qxc1+ {[%emt 0:00:53]} 26. Qxc1 {[%emt 0:00:05]} Bxd5 {[%emt 0:00:04]} 27. Rd3 {[%emt 0:03:43]} Rac8 {[%emt 0:00:25]} 28. Rc3 {[%emt 0:00:04]} Rxc3 29. Qxc3 {[%emt 0:00:01]} Rb8 {[%emt 0:02:32]} 30. g4 {[%emt 0:00:45]} h6 {[%emt 0:01:03]} 31. h4 {[%emt 0:00:50]} Rb7 {[%emt 0:03:32]} 32. Qf6 {[%emt 0:03:22]} Rd7 {[%emt 0:01:24]} 33. h5 {[%emt 0:01:12]} gxh5 {[%emt 0:01:21]} 34. gxh5 {[%emt 0:00:22]} Kh7 {[%emt 0:00:10]} 35. f3 {[%emt 0:01:07]} b5 {[%emt 0:04:41]} 36. Kf2 {[%emt 0:01:03]} Rb7 {[%emt 0:01:44]} 37. Ke3 {[%emt 0:00:57]} a5 {[%emt 0:00:19]} 38. Kf4 {[%emt 0:04:27]} b4 {[%emt 0:01:20]} 39. a4 {[%emt 0:01:25]} Rd7 {[%emt 0:05:55]} 40. Qd4 {[%emt 0:00:00]} Bc6 {[%emt 0:00:00]} 41. Qc5 {[%emt 0:09:56]} Bxa4 {[%emt 0:02:22]} 42. Qxa5 {[%emt 0:00:18]} Bd1 {[%emt 0:08:20]} 43. Qxb4 {[%emt 0:01:36]} Rd5 {[%emt 0:00:09]} 44. Qe4+ {[%emt 0:04:27]} Rf5+ {[%emt 0:02:57]} 45. Ke3 {[%emt 0:00:05]} Bb3 {[%emt 0:01:35]} 46. Qd3 {[%emt 0:05:59]} Bd5 {[%emt 0:00:19]} 47. f4 {[%emt 0:00:12]} Kg7 {[%emt 0:01:47]} 48. Qd4+ {[%emt 0:03:07]} Kg8 {[%emt 0:00:15]} 49. Qd1 {[%emt 0:00:37]} Bc6 {[%emt 0:01:40]} 50. b4 {[%emt 0:04:26]} Bb5 {[%emt 0:00:52]} 51. Qg4+ {[%emt 0:02:46]} Kf8 {[%emt 0:00:10]} 52. Qh4 {[%emt 0:01:18]} Kg7 {[%emt 0:01:27]} 53. Qg4+ {[%emt 0:00:09]} Kh7 {[%emt 0:00:28]} 54. Qd1 {[%emt 0:02:34]} Rd5 {[%emt 0:01:32]} 55. Qc2+ {[%emt 0:00:23]} Rf5 {[%emt 0:03:51]} 56. Qc7 {[%emt 0:00:53]} Kg7 {[%emt 0:00:26]} 57. Qc3+ {[%emt 0:00:07]} 1/2-1/2

[Event "EYCC Open U18 2018"]
[Site "Riga"]
[Date "2018.08.20"]
[Round "1"]
[White "Mesaros, Florian"]
[Black "Kristensen, Bjarke Hautop"]
[Result "1-0"]
[ECO "A04"]
[WhiteElo "2422"]
[BlackElo "2181"]
[Annotator "NA"]
[PlyCount "63"]
[EventDate "2018.08.20"]
[EventType "swiss"]
[EventCountry "LAT"]
[SourceTitle "playchess.com"]
[Source "ChessBase"]
[SourceQuality "1"]
[TimeControl "40/5400+30:1800+30"]

1. Nf3 {[%emt 0:00:00]} c5 {[%emt 0:00:00]} 2. c4 {[%emt 0:00:00]} Nc6 {[%emt 0:00:00]} 3. Nc3 {[%emt 0:00:02]} e5 {[%emt 0:00:00]} 4. g3 {[%emt 0:01:05]} g6 {[%emt 0:00:14]} 5. Bg2 {[%emt 0:00:10]} Bg7 {[%emt 0:00:04]} 6. a3 {[%emt 0:04:33]} Nge7 {[%emt 0:07:20]} 7. b4 {[%emt 0:05:33]} d6 {[%emt 0:07:20] A37: Symmetrical English vs ...g6: 4 Bg2 Bg7 5 Nf3} 8. Rb1 {[%emt 0:04:16]} O-O {[%emt 0:00:57]} 9. O-O {[%emt 0:01:03] LiveBook: 99 Games} f5 {[%emt 0:03:30]} (9... Rb8 10. d3 h6 11. Nd2 b6 12. Qa4 Bd7 13. b5 Na5 14. Qc2 f5 15. Bb2 Kh7 16. e3 Qe8 17. Rbe1 Nb7 18. f4 Nd8 {1-0 (40) Bocharov,D (2583)-Tregubov,P (2575) Riadh 2017}) 10. Ne1 {[%emt 0:02:58]} Rb8 {[%emt 0:10:54]} 11. Nc2 {[%emt 0:02:21]} Be6 {[%emt 0:17:29]} 12. Ne3 {[%emt 0:01:22]} Qd7 {[%emt 0:00:10]} 13. Ned5 {[%emt 0:10:24]} b6 {[%emt 0:00:46]} 14. b5 $146 {[%emt 0:03:45]} ({Predecessor:} 14. d3 h6 15. Qa4 Kh7 16. Bd2 {1-0 (57) Nill,O (2188)-Mestek,I (2095) Amsterdam 2015}) 14... Nd8 {[%emt 0:04:56]} 15. Nxe7+ {[%emt 0:03:27]} Qxe7 {[%emt 0:00:05]} 16. Nd5 {[%emt 0:00:22]} Qd7 {[%emt 0:04:04]} 17. d3 $14 {[%emt 0:01:59]} h6 {[%emt 0:04:52]} 18. a4 {[%emt 0:07:28]} g5 {[%emt 0:07:07]} 19. f4 {[%emt 0:02:07]} exf4 {[%emt 0:03:09]} 20. gxf4 {[%emt 0:01:03]} g4 {[%emt 0:00:05]} 21. Bb2 {[%emt 0:04:12]} Nb7 {[%emt 0:10:51]} 22. Qe1 {[%emt 0:05:17]} Bxb2 {[%emt 0:04:01]} 23. Rxb2 {[%emt 0:00:12]} Qd8 {[%emt 0:03:02]} 24. Qc3 {[%emt 0:01:13]} h5 {[%emt 0:00:35]} 25. e4 {[%emt 0:08:38]} h4 {[%emt 0:07:44]} 26. exf5 {[%emt 0:01:41]} Bxf5 {[%emt 0:00:16]} 27. Re2 {[%emt 0:00:44]} Rf7 {[%emt 0:02:04]} 28. Rfe1 {[%emt 0:00:46]} Qf8 {[%emt 0:01:48]} 29. Ne7+ {[%emt 0:00:44]} Kh7 {[%emt 0:00:10]} 30. Nxf5 {[%emt 0:00:18]} Rxf5 {[%emt 0:00:06]} 31. Re7+ {[%emt 0:00:38]} Rf7 {[%emt 0:00:49]} 32. Qf6 {[%emt 0:00:52]} 1-0

[Event "EYCC Open U18 2018"]
[Site "Riga"]
[Date "2018.08.20"]
[Round "1"]
[White "Stauskas, Lukas"]
[Black "Kevlishvili, Robby"]
[Result "1-0"]
[ECO "D45"]
[WhiteElo "2256"]
[BlackElo "2497"]
[Annotator "ChessBase"]
[PlyCount "101"]
[EventDate "2018.08.20"]
[EventType "swiss"]
[EventCountry "LAT"]
[SourceTitle "playchess.com"]
[Source "ChessBase"]
[SourceQuality "1"]
[TimeControl "40/5400+30:1800+30"]

1. d4 {[%emt 0:00:00]} d5 {[%emt 0:00:00]} 2. c4 {[%emt 0:00:00]} c6 {[%emt 0:00:00]} 3. Nf3 {[%emt 0:00:00]} Nf6 {[%emt 0:00:00]} 4. Nc3 {[%emt 0:00:00]} e6 {[%emt 0:00:00]} 5. e3 {[%emt 0:00:00]} Nbd7 {[%emt 0:00:00]} 6. Qc2 {[%emt 0:00:05]} Bd6 {[%emt 0:00:19]} 7. b3 {[%emt 0:00:13]} O-O {[%emt 0:01:36]} 8. Bb2 {[%emt 0:00:06]} b6 {[%emt 0:09:21]} 9. Bd3 {[%emt 0:00:47]} Bb7 {[%emt 0:00:19]} 10. O-O {[%emt 0:00:39]} Rc8 {[%emt 0:02:06]} 11. Rad1 {[%emt 0:03:01]} h6 {[%emt 0:14:24]} 12. Rfe1 {[%emt 0:05:11]} Qc7 {[%emt 0:05:32]} 13. e4 {[%emt 0:15:44]} dxe4 {[%emt 0:04:04]} 14. Nxe4 {[%emt 0:00:07]} Nxe4 {[%emt 0:00:33]} 15. Rxe4 {[%emt 0:12:46]} Nf6 {[%emt 0:01:34]} 16. Rh4 {[%emt 0:01:48]} Be7 {[%emt 0:01:12]} 17. Ne5 {[%emt 0:08:27]} Rfd8 {[%emt 0:13:15]} 18. Re1 {[%emt 0:05:43]} c5 {[%emt 0:05:39]} 19. dxc5 {[%emt 0:06:42]} Qxc5 {[%emt 0:03:58]} 20. Qe2 {[%emt 0:02:21]} Qd6 {[%emt 0:17:04]} 21. Rh3 {[%emt 0:02:55]} Kf8 {[%emt 0:02:21]} 22. Rg3 {[%emt 0:03:30]} a5 {[%emt 0:05:58]} 23. Bc3 {[%emt 0:05:54]} Bc6 {[%emt 0:01:32]} 24. Bb1 {[%emt 0:04:15]} Be8 {[%emt 0:00:54]} 25. a4 {[%emt 0:00:38]} Qc7 {[%emt 0:02:33]} 26. Qb2 {[%emt 0:04:59]} Rd6 {[%emt 0:03:20]} 27. Ng4 {[%emt 0:05:09]} Qd8 {[%emt 0:00:05]} 28. Qc2 {[%emt 0:07:45]} Bc6 {[%emt 0:01:25]} 29. h3 {[%emt 0:03:02]} Bb7 {[%emt 0:00:50]} 30. Nxh6 {[%emt 0:01:30]} gxh6 {[%emt 0:03:12]} 31. Qc1 {[%emt 0:00:07]} Ke8 {[%emt 0:00:29]} 32. Bxf6 {[%emt 0:00:09]} Bxf6 {[%emt 0:00:02]} 33. Rg8+ {[%emt 0:00:08]} Ke7 {[%emt 0:00:03]} 34. Rxd8 {[%emt 0:00:07]} Rcxd8 {[%emt 0:00:03]} 35. Qxh6 {[%emt 0:00:54]} Bc3 {[%emt 0:02:07]} 36. Qh4+ {[%emt 0:01:20]} Ke8 {[%emt 0:00:56]} 37. Re3 {[%emt 0:00:41]} Rd1+ {[%emt 0:00:21]} 38. Kh2 {[%emt 0:00:05]} Bb4 {[%emt 0:01:19]} 39. Be4 {[%emt 0:00:49]} Bd6+ {[%emt 0:00:23]} 40. g3 {[%emt 0:00:00]} Bxe4 {[%emt 0:00:00]} 41. Qxe4 {[%emt 0:00:53]} Bc5 {[%emt 0:00:30]} 42. Rf3 {[%emt 0:01:03]} Rf1 {[%emt 0:00:56]} 43. Qc6+ {[%emt 0:01:03]} Rd7 {[%emt 0:01:32]} 44. Rxf7 {[%emt 0:00:42]} Kxf7 {[%emt 0:00:06]} 45. Qxd7+ {[%emt 0:00:06]} Kf6 {[%emt 0:00:05]} 46. g4 {[%emt 0:01:45]} Rxf2+ {[%emt 0:00:23]} 47. Kg3 {[%emt 0:00:06]} Re2 {[%emt 0:00:14]} 48. g5+ {[%emt 0:01:45]} Ke5 {[%emt 0:00:46]} 49. g6 {[%emt 0:02:46]} Re3+ {[%emt 0:00:15]} 50. Kg4 {[%emt 0:00:34]} Re4+ {[%emt 0:00:09]} 51. Kh5 {[%emt 0:00:30]} 1-0

[Event "EYCC Open U18 2018"]
[Site "Riga"]
[Date "2018.08.20"]
[Round "1"]
[White "Radenic, Filip"]
[Black "Gaifullin, Artur"]
[Result "0-1"]
[ECO "A13"]
[WhiteElo "2198"]
[BlackElo "2461"]
[Annotator "ChessBase"]
[PlyCount "92"]
[EventDate "2018.08.20"]
[EventType "swiss"]
[EventCountry "LAT"]
[SourceTitle "playchess.com"]
[Source "ChessBase"]
[SourceQuality "1"]
[TimeControl "40/5400+30:1800+30"]

1. c4 {[%emt 0:00:00]} e6 {[%emt 0:00:00]} 2. Nf3 {[%emt 0:00:00]} Nf6 {[%emt 0:00:00]} 3. g3 {[%emt 0:00:07]} d5 {[%emt 0:00:00]} 4. Bg2 {[%emt 0:00:15]} d4 {[%emt 0:00:00]} 5. O-O {[%emt 0:00:31]} c5 {[%emt 0:00:00]} 6. e3 {[%emt 0:03:51]} Nc6 {[%emt 0:00:00]} 7. exd4 {[%emt 0:00:12]} cxd4 {[%emt 0:00:03]} 8. d3 {[%emt 0:00:40]} Bd6 {[%emt 0:00:07]} 9. a3 {[%emt 0:03:42]} a5 {[%emt 0:00:06]} 10. b3 {[%emt 0:00:58]} O-O {[%emt 0:01:05]} 11. Bb2 {[%emt 0:01:20]} e5 {[%emt 0:00:06]} 12. Re1 {[%emt 0:01:24]} Re8 {[%emt 0:00:06]} 13. Nbd2 {[%emt 0:03:44]} Bf5 {[%emt 0:00:18]} 14. Qc2 {[%emt 0:01:11]} Rc8 {[%emt 0:02:02]} 15. Rac1 {[%emt 0:15:25]} b5 {[%emt 0:05:28]} 16. Ng5 {[%emt 0:09:58]} b4 {[%emt 0:10:03]} 17. a4 {[%emt 0:06:51]} Nd7 {[%emt 0:00:20]} 18. Nge4 {[%emt 0:01:03]} Bf8 {[%emt 0:00:01]} 19. Rcd1 {[%emt 0:06:07]} Bg4 {[%emt 0:03:25]} 20. f3 {[%emt 0:01:47]} Be6 {[%emt 0:00:13]} 21. Nf1 {[%emt 0:01:48]} f5 {[%emt 0:04:49]} 22. Nf2 {[%emt 0:01:23]} Nc5 {[%emt 0:01:05]} 23. Bc1 {[%emt 0:02:28]} Bf7 {[%emt 0:00:40]} 24. f4 {[%emt 0:03:13]} e4 {[%emt 0:04:18]} 25. dxe4 {[%emt 0:01:24]} fxe4 {[%emt 0:00:04]} 26. Nxe4 {[%emt 0:07:26]} Bg6 {[%emt 0:00:25]} 27. Nfd2 {[%emt 0:02:12]} d3 {[%emt 0:02:33]} 28. Qb2 {[%emt 0:00:37]} Bh5 {[%emt 0:03:00]} 29. Ng5 {[%emt 0:01:34]} Bxd1 {[%emt 0:11:08]} 30. Rxe8 {[%emt 0:00:28]} Qxe8 {[%emt 0:00:04]} 31. Bd5+ {[%emt 0:00:09]} Kh8 {[%emt 0:00:00]} 32. Nf7+ {[%emt 0:00:09]} Qxf7 {[%emt 0:00:05]} 33. Bxf7 {[%emt 0:00:08]} Be7 {[%emt 0:00:04]} 34. Qa1 {[%emt 0:06:25]} Nxb3 {[%emt 0:00:25]} 35. Nxb3 {[%emt 0:00:10]} Bxb3 {[%emt 0:00:01]} 36. Bb2 {[%emt 0:00:26]} Bf8 {[%emt 0:00:01]} 37. Qe1 {[%emt 0:02:00]} Rd8 {[%emt 0:00:33]} 38. Bd5 {[%emt 0:00:36]} d2 {[%emt 0:00:24]} 39. Qxd2 {[%emt 0:01:19]} Bxc4 {[%emt 0:00:04]} 40. Qe3 {[%emt 0:00:00]} Bxd5 {[%emt 0:00:00]} 41. f5 {[%emt 0:01:35]} Bf7 {[%emt 0:01:20]} 42. h4 {[%emt 0:01:30]} Rd5 {[%emt 0:02:20]} 43. Qf4 {[%emt 0:01:00]} Rd1+ {[%emt 0:03:32]} 44. Kh2 {[%emt 0:00:53]} Bd5 {[%emt 0:00:30]} 45. g4 {[%emt 0:00:54]} Rb1 {[%emt 0:07:57]} 46. Qd2 {[%emt 0:00:38]} Bd6+ {[%emt 0:00:11]} 0-1

[Event "EYCC Open U18 2018"]
[Site "Riga"]
[Date "2018.08.20"]
[Round "1"]
[White "Cirovic, Miroljub"]
[Black "Plazuelo Pascual, Juan"]
[Result "1/2-1/2"]
[ECO "A50"]
[WhiteElo "2190"]
[BlackElo "2429"]
[Annotator "NA RC"]
[PlyCount "44"]
[EventDate "2018.08.20"]
[EventType "swiss"]
[EventCountry "LAT"]
[SourceTitle "playchess.com"]
[Source "ChessBase"]
[SourceQuality "1"]
[TimeControl "40/5400+30:1800+30"]

1. d4 {[%emt 0:00:00]} Nf6 {[%emt 0:00:00]} 2. c4 {[%emt 0:00:00]} b6 {[%emt 0:00:00]} 3. Nf3 {[%emt 0:00:51]} Bb7 {[%emt 0:00:00]} 4. Nbd2 {[%emt 0:03:17] A50: Queen's Fianchetto Defence (1 d4 Nf6 2 c4 b6)} (4. g3 g6 5. Bg2 Bg7 6. O-O O-O 7. Nc3 Ne4 8. Bd2 e6 9. Nxe4 Bxe4 10. Bc3 c5 11. Rc1 Nc6 12. e3 Qc7 13. Qd2 Qb7 14. Ne1 cxd4 15. exd4 Ne7 {½-½ (43) Lenic,L (2662)-Vachier Lagrave,M (2789) chess.com INT 2018}) 4... e6 {[%emt 0:10:54]} 5. e3 {[%emt 0:01:19]} c5 {[%emt 0:07:37] LiveBook: 22 Games} 6. dxc5 {[%emt 0:04:31]} bxc5 {[%emt 0:02:42]} 7. b3 {[%emt 0:01:38]} Be7 {[%emt 0:03:24]} 8. Bb2 {[%emt 0:00:22]} O-O {[%emt 0:01:49]} 9. Bd3 {[%emt 0:01:26]} Nc6 {[%emt 0:06:20]} 10. O-O {[%emt 0:01:28]} d5 $146 {[%emt 0:02:10]} ({Predecessor:} 10... a5 11. Rc1 d6 12. Bb1 Qd7 13. Ng5 g6 14. Qf3 e5 15. Qe2 Ne8 16. f4 f5 17. Rfd1 Bxg5 18. fxg5 {½-½ (55) Tabatt,H (2302)-Barski,R (2407) Germany 2017}) 11. a3 {[%emt 0:01:44]} a5 {[%emt 0:09:08]} 12. cxd5 {[%emt 0:02:43]} exd5 {[%emt 0:02:14]} 13. e4 {[%emt 0:02:48]} dxe4 {[%emt 0:06:48]} 14. Nxe4 {[%emt 0:00:07]} Nd4 {[%emt 0:01:04]} 15. Bxd4 {[%emt 0:10:02]} cxd4 {[%emt 0:03:12]} 16. Nxf6+ {[%emt 0:00:08]} Bxf6 {[%emt 0:00:13]} 17. Nd2 {[%emt 0:02:03]} Rc8 {[%emt 0:07:02]} 18. Nc4 $15 {[%emt 0:02:58]} Rc5 {[%emt 0:06:58]} 19. f4 {[%emt 0:05:10]} h6 {[%emt 0:10:50]} 20. Qd2 {[%emt 0:02:07]} Qc7 {[%emt 0:03:19]} 21. Rac1 {[%emt 0:00:47]} Ba6 {[%emt 0:03:28]} 22. b4 {[%emt 0:09:52]} axb4 {[%emt 0:00:50]} 1/2-1/2

[Event "EYCC Open U18 2018"]
[Site "Riga"]
[Date "2018.08.22"]
[Round "3"]
[White "Livaic, Leon"]
[Black "Laurent Paoli, Pierre"]
[Result "1-0"]
[ECO "A58"]
[WhiteElo "2495"]
[BlackElo "2320"]
[Annotator "RC"]
[PlyCount "111"]
[EventDate "2018.08.20"]
[EventType "swiss"]
[EventCountry "LAT"]
[SourceTitle "playchess.com"]
[Source "ChessBase"]
[SourceQuality "1"]
[TimeControl "40/5400+30:1800+30"]

1. d4 {[%emt 0:00:00]} Nf6 {[%emt 0:00:00]} 2. c4 {[%emt 0:00:00]} c5 {[%emt 0:00:00]} 3. d5 {[%emt 0:00:00]} b5 {[%emt 0:00:00]} 4. cxb5 {[%emt 0:00:00]} a6 {[%emt 0:00:00]} 5. bxa6 {[%emt 0:00:00]} g6 {[%emt 0:00:00]} 6. Nc3 {[%emt 0:00:00]} Bg7 {[%emt 0:00:00]} 7. e4 {[%emt 0:00:10]} O-O {[%emt 0:00:03]} 8. a7 {[%emt 0:00:49]} Rxa7 {[%emt 0:00:04]} 9. Nf3 {[%emt 0:00:02]} e6 {[%emt 0:00:05]} 10. Be2 {[%emt 0:00:02]} exd5 {[%emt 0:00:06]} 11. exd5 {[%emt 0:00:02]} d6 {[%emt 0:00:07]} 12. O-O {[%emt 0:00:02]} Na6 {[%emt 0:00:03]} 13. Nb5 {[%emt 0:01:48]} Rd7 {[%emt 0:00:06]} 14. Bc4 {[%emt 0:02:18]} Bb7 {[%emt 0:03:41]} 15. Bg5 {[%emt 0:07:28]} h6 {[%emt 0:24:24]} 16. Bxf6 {[%emt 0:00:52]} Qxf6 {[%emt 0:00:03]} 17. Rb1 {[%emt 0:09:49]} g5 {[%emt 0:08:03]} 18. h3 {[%emt 0:06:14]} h5 {[%emt 0:16:01]} 19. Nh2 {[%emt 0:14:55]} Qg6 {[%emt 0:04:25]} 20. Re1 {[%emt 0:06:59]} Nc7 {[%emt 0:20:24]} 21. Nxc7 {[%emt 0:02:24]} Rxc7 {[%emt 0:00:02]} 22. Bd3 {[%emt 0:16:37]} f5 {[%emt 0:02:53]} 23. Re6 {[%emt 0:00:12]} Rf6 {[%emt 0:00:29]} 24. g4 {[%emt 0:11:37]} Qf7 {[%emt 0:04:48]} 25. Bxf5 {[%emt 0:02:05]} Rxf5 {[%emt 0:00:04]} 26. gxf5 {[%emt 0:00:04]} Qxf5 {[%emt 0:00:03]} 27. Re8+ {[%emt 0:01:38]} Bf8 {[%emt 0:00:18]} 28. Rc1 {[%emt 0:03:33]} Rf7 {[%emt 0:01:33]} 29. Qc2 {[%emt 0:02:26]} Qxd5 {[%emt 0:00:42]} 30. Qg6+ {[%emt 0:00:54]} Rg7 {[%emt 0:00:41]} 31. Qe6+ {[%emt 0:00:05]} Qxe6 {[%emt 0:00:04]} 32. Rxe6 {[%emt 0:00:03]} Bd5 {[%emt 0:03:01]} 33. Rh6 {[%emt 0:03:07]} g4 {[%emt 0:07:19]} 34. hxg4 {[%emt 0:00:10]} hxg4 {[%emt 0:00:05]} 35. Rc3 {[%emt 0:03:50]} Re7 {[%emt 0:02:45]} 36. Rg6+ {[%emt 0:00:06]} Kf7 {[%emt 0:00:17]} 37. Rxg4 {[%emt 0:00:11]} Re1+ {[%emt 0:00:26]} 38. Nf1 {[%emt 0:00:05]} Bg7 {[%emt 0:02:12]} 39. Rf4+ {[%emt 0:05:31]} Ke6 {[%emt 0:00:56]} 40. Re3+ {[%emt 0:00:00]} Rxe3 {[%emt 0:00:00]} 41. Nxe3 {[%emt 0:00:08]} Bxa2 {[%emt 0:00:18]} 42. b4 {[%emt 0:03:46]} cxb4 {[%emt 0:05:37]} 43. Re4+ {[%emt 0:01:00]} Kd7 {[%emt 0:01:39]} 44. Rxb4 {[%emt 0:00:15]} Kc6 {[%emt 0:00:07]} 45. Nf5 {[%emt 0:02:57]} Bf6 {[%emt 0:01:57]} 46. Ra4 {[%emt 0:00:40]} Be6 {[%emt 0:00:51]} 47. Ra6+ {[%emt 0:04:52]} Kd5 {[%emt 0:00:15]} 48. Nxd6 {[%emt 0:00:12]} Bd7 {[%emt 0:00:21]} 49. Nc4 {[%emt 0:00:53]} Bd4 {[%emt 0:00:25]} 50. Rd6+ {[%emt 0:00:10]} Kxc4 {[%emt 0:00:05]} 51. Rxd7 {[%emt 0:00:02]} Kd3 {[%emt 0:00:07]} 52. Kg2 {[%emt 0:00:11]} Ke4 {[%emt 0:00:03]} 53. Rxd4+ {[%emt 0:00:27]} Kxd4 {[%emt 0:00:04]} 54. Kf3 {[%emt 0:00:03]} Kd5 {[%emt 0:00:16]} 55. Kf4 {[%emt 0:00:07]} Kd6 {[%emt 0:00:08]} 56. Kf5 {[%emt 0:00:12]} 1-0

[Event "EYCC Open U18 2018"]
[Site "Riga"]
[Date "2018.08.22"]
[Round "3"]
[White "Ozen, Bahadir"]
[Black "Erenberg, Ariel"]
[Result "1/2-1/2"]
[ECO "E47"]
[WhiteElo "2302"]
[BlackElo "2399"]
[Annotator "NA"]
[PlyCount "38"]
[EventDate "2018.08.20"]
[EventType "swiss"]
[EventCountry "LAT"]
[SourceTitle "playchess.com"]
[Source "ChessBase"]
[SourceQuality "1"]
[TimeControl "40/5400+30:1800+30"]

{[%evp 10,38,9,32767,32767,2,5,32767,32767,1,8,32767,32767,32767,32767,32767,32767,32767,22,32767,32767,23,32767,32767,81,71,68,77,32767,32767,45]} 1. d4 {[%emt 0:00:12]} Nf6 {[%emt 0:00:00]} 2. c4 {[%emt 0:00:47]} e6 {[%emt 0:01:27]} 3. Nc3 {[%emt 0:00:50]} Bb4 {[%emt 0:00:02]} 4. e3 {[%emt 0:00:51]} O-O {[%emt 0:01:28]} 5. Bd3 {[%emt 0:01:27]} b6 {[%emt 0:03:08]} 6. Nf3 {[%emt 0:01:35]} d5 {[%emt 0:07:09]} 7. O-O {[%emt 0:03:09]} Ba6 {[%emt 0:00:03] E52: Nimzo-Indian: Rubinstein: 4...0-0 5 Nf3 d5 6 Bd3 b6} 8. cxd5 {[%emt 0:04:52]} exd5 {[%emt 0:00:04]} 9. Bxa6 {[%emt 0:01:42]} Nxa6 {[%emt 0:00:02] LiveBook: 62 Games} 10. Qd3 {[%emt 0:00:19]} Qc8 {[%emt 0:00:48]} 11. Bd2 {[%emt 0:01:42]} Qb7 $146 {[%emt 0:15:49]} ({Predecessor:} 11... Re8 12. Rac1 Bf8 13. a3 c5 14. dxc5 Nxc5 {½-½ (54) Mamedyarov,S (2736)-Carlsen,M (2850) Berlin 2015}) 12. a3 {[%emt 0:03:12]} Be7 {[%emt 0:03:23]} 13. b4 {[%emt 0:03:20]} c5 {[%emt 0:00:31]} 14. bxc5 {[%emt 0:01:41]} bxc5 {[%emt 0:00:02]} 15. Rfb1 {[%emt 0:04:43]} Qc8 {[%emt 0:00:54]} 16. dxc5 {[%emt 0:00:16]} Nxc5 {[%emt 0:00:27]} 17. Nxd5 {[%emt 0:01:30]} Nxd5 {[%emt 0:09:16]} 18. Qxd5 {[%emt 0:00:03]} Bf6 {[%emt 0:01:13]} 19. Nd4 {[%emt 0:06:04]} Rd8 $14 {[%emt 0:02:28]} 1/2-1/2

[Event "EYCC Open U18 2018"]
[Site "Riga"]
[Date "2018.08.22"]
[Round "3"]
[White "Vasiesiu, Victor"]
[Black "Ioannidis, Evgenios"]
[Result "0-1"]
[ECO "B56"]
[WhiteElo "2297"]
[BlackElo "2343"]
[Annotator "NA"]
[PlyCount "62"]
[EventDate "2018.08.20"]
[EventType "swiss"]
[EventCountry "LAT"]
[SourceTitle "playchess.com"]
[Source "ChessBase"]
[SourceQuality "1"]
[TimeControl "40/5400+30:1800+30"]

1. e4 {[%emt 0:00:00]} c5 {[%emt 0:00:00]} 2. Nf3 {[%emt 0:00:00]} d6 {[%emt 0:00:00]} 3. d4 {[%emt 0:00:00]} cxd4 {[%emt 0:00:22]} 4. Nxd4 {[%emt 0:00:00]} Nf6 {[%emt 0:00:15]} 5. Nc3 {[%emt 0:00:01]} Nc6 {[%emt 0:00:25]} 6. f3 {[%emt 0:00:09]} e5 {[%emt 0:00:27]} 7. Nb3 {[%emt 0:02:29]} Be7 {[%emt 0:00:37]} 8. Be3 {[%emt 0:02:12]} O-O {[%emt 0:00:42]} 9. Qd2 {[%emt 0:01:24]} Be6 {[%emt 0:01:47]} 10. Nd5 {[%emt 0:02:56]} a5 {[%emt 0:01:25] B56: Classical Sicilian: Unusual Lines} 11. Bb6 {[%emt 0:03:48]} (11. c4 a4 12. Nc1 Bxd5 13. cxd5 Nd4 14. Ne2 Nxe2 15. Bxe2 Nd7 16. O-O h6 17. Bb5 Nc5 18. Bxc5 dxc5 {1-0 (39) Caruana,F (2823)-Topalov,V (2760) Saint Louis 2016}) 11... Qb8 {[%emt 0:01:11]} 12. Bc7 {[%emt 0:19:46]} Qc8 {[%emt 0:00:55]} 13. Nxe7+ {[%emt 0:00:47]} Nxe7 14. Qxd6 $146 {[%emt 0:22:52]} ({But not} 14. Bxd6 Rd8 $17) ({Predecessor:} 14. Bxa5 d5 15. Bb4 Re8 16. Nc5 Nc6 17. Bd3 dxe4 18. Nxe4 Nxe4 19. fxe4 Nxb4 20. Qxb4 {0-1 (53) Sacerdotali,S (2090)-Pedro,F (2082) LSS email 2011}) 14... Nc6 {[%emt 0:02:59]} 15. Bb6 $1 {[%emt 0:00:15]} Nd7 {[%emt 0:01:31]} 16. Bf2 {[%emt 0:13:38]} Nb4 {[%emt 0:01:58]} 17. Bd3 {[%emt 0:00:07]} Nxc2+ {[%emt 0:02:20]} 18. Bxc2 {[%emt 0:00:05]} Qxc2 {[%emt 0:00:04]} 19. O-O {[%emt 0:00:47]} Rfc8 {[%emt 0:15:12]} 20. Qa3 {[%emt 0:12:55]} a4 {[%emt 0:03:00]} 21. Rac1 {[%emt 0:00:47]} axb3 {[%emt 0:01:21]} 22. Rxc2 {[%emt 0:00:05]} bxc2 {[%emt 0:00:08]} 23. Qe3 {[%emt 0:00:32]} Rxa2 {[%emt 0:00:27]} 24. Qc1 {[%emt 0:01:55]} b5 {[%emt 0:01:48]} 25. Be3 {[%emt 0:05:37]} b4 {[%emt 0:00:53]} 26. Bd2 {[%emt 0:00:32]} b3 {[%emt 0:01:11]} 27. Bc3 {[%emt 0:01:41]} Rxc3 {[%emt 0:01:02]} 28. bxc3 {[%emt 0:00:14]} Bc4 {[%emt 0:00:06]} 29. Re1 {[%emt 0:01:34]} Bd3 {[%emt 0:00:06]} 30. Qe3 {[%emt 0:03:07]} b2 {[%emt 0:00:05]} 31. Qxd3 {[%emt 0:00:28]} c1=Q {[%emt 0:00:08]} 0-1